[Event "Championnat du monde jeunes U10"]
[Date "2024.11.25"]
[White "Sahin, Yusuf Kerem"]
[Black "Czech, Emil"]
[WhiteElo "1720"]
[BlackElo "1608"]
[Round "10.4"]
[Result "1-0"]
[TimeControl "5400+30"]

1. d4 {[%clk 1:30:45]} 1... d5 {[%clk 1:30:51]} 2. c4 {[%clk 1:31:05]} 2... e6
{[%clk 1:31:15]} 3. Nf3 {[%clk 1:31:13]} 3... Nf6 {[%clk 1:31:33]} 4. g3 {[%clk
1:31:31]} 4... Be7 {[%clk 1:23:32]} 5. Bg2 {[%clk 1:31:30]} 5... O-O {[%clk
1:23:21]} 6. O-O {[%clk 1:31:32]} 6... c6 {[%clk 1:14:28]} 7. Qc2 {[%clk
1:31:32]} 7... h6 {[%clk 1:14:05]} 8. Nbd2 {[%clk 1:31:44]} 8... Nbd7 {[%clk
1:13:45]} 9. e4 {[%clk 1:31:53]} 9... dxe4 {[%clk 1:13:05]} 10. Nxe4 {[%clk
1:32:17]} 10... Nb6 {[%clk 1:09:01]} 11. b3 {[%clk 1:29:30]} 11... a5 {[%clk
1:06:28]} 12. a4 {[%clk 1:27:15]} 12... Bb4 {[%clk 1:04:06]} 13. Bf4 {[%clk
1:24:53]} 13... Nxe4 {[%clk 0:56:59]} 14. Qxe4 {[%clk 1:25:13]} 14... Nd7 {[%clk
0:57:11]} 15. Rfd1 {[%clk 1:24:22]} 15... Nf6 {[%clk 0:54:11]} 16. Qc2 {[%clk
1:24:23]} 16... Bd7 {[%clk 0:52:22]} 17. Be5 {[%clk 1:13:19]} 17... Rc8 {[%clk
0:47:54]} 18. Bxf6 {[%clk 1:08:30]} 18... Qxf6 {[%clk 0:47:45]} 19. Ne5 {[%clk
1:08:42]} 19... Rfd8 {[%clk 0:43:50]} 20. c5 {[%clk 1:08:42]} 20... Be8 {[%clk
0:39:16]} 21. Qe4 {[%clk 1:06:25]} 21... Qf5 {[%clk 0:33:55]} 22. Rac1 {[%clk
1:05:10]} 22... Qxe4 {[%clk 0:28:45]} 23. Bxe4 {[%clk 1:05:33]} 23... f6 {[%clk
0:28:47]} 24. Nc4 {[%clk 1:05:24]} 24... Bh5 {[%clk 0:27:21]} 25. f3 {[%clk
0:42:16]} 25... Rxd4 {[%clk 0:22:43]} 26. g4 {[%clk 0:39:27]} 26... Bxc5 {[%clk
0:20:38]} 27. Kg2 {[%clk 0:38:53]} 27... Bf7 {[%clk 0:20:09]} 28. Nxa5 {[%clk
0:38:57]} 28... b6 {[%clk 0:17:14]} 29. Nxc6 {[%clk 0:34:26]} 29... Rxd1 {[%clk
0:17:14]} 30. Rxd1 {[%clk 0:34:36]} 30... g6 {[%clk 0:13:43]} 31. b4 {[%clk
0:31:52]} 31... Bf8 {[%clk 0:14:00]} 32. b5 {[%clk 0:31:39]} 32... f5 {[%clk
0:11:10]} 33. a5 {[%clk 0:25:12]} 33... Rc7 {[%clk 0:06:34]} 34. axb6 {[%clk
0:21:39]} 34... Rb7 {[%clk 0:06:55]} 35. Ne7+ {[%clk 0:21:20]} 35... Rxe7 {[%clk
0:07:13]} 36. Bc6 {[%clk 0:21:35]} 36... Be8 {[%clk 0:06:19]} 37. Rd8 {[%clk
0:21:37]} 37... Rb7 {[%clk 0:05:33]} 38. Bxb7 {[%clk 0:21:46]} 38... Bxb5 {[%clk
0:05:57]} 39. Bd5 {[%clk 0:21:27]} 1-0

[Variant "Standard"]
[Site "Europe Echecs"]

[Event "Championnat du monde jeunes U10"]
[Date "2024.11.25"]
[White "Lee, Yugeon"]
[Black "Gim, Hajin"]
[WhiteElo "1690"]
[BlackElo "1603"]
[Round "10.5"]
[Result "1-0"]
[TimeControl "5400+30"]

1. d4 {[%clk 1:30:56]} 1... Nf6 {[%clk 1:30:57]} 2. c4 {[%clk 1:31:14]} 2... c5
{[%clk 1:31:24]} 3. d5 {[%clk 1:31:31]} 3... b5 {[%clk 1:31:50]} 4. cxb5 {[%clk
1:31:52]} 4... a6 {[%clk 1:32:15]} 5. bxa6 {[%clk 1:32:12]} 5... g6 {[%clk
1:32:41]} 6. Nc3 {[%clk 1:32:29]} 6... Bxa6 {[%clk 1:32:59]} 7. e4 {[%clk
1:32:27]} 7... Bxf1 {[%clk 1:33:23]} 8. Kxf1 {[%clk 1:32:53]} 8... d6 {[%clk
1:33:47]} 9. a4 {[%clk 1:33:18]} 9... Bg7 {[%clk 1:34:08]} 10. g3 {[%clk
1:33:43]} 10... O-O {[%clk 1:34:31]} 11. Kg2 {[%clk 1:34:10]} 11... Nbd7 {[%clk
1:34:55]} 12. Nf3 {[%clk 1:34:14]} 12... Qb6 {[%clk 1:34:59]} 13. Qe2 {[%clk
1:34:03]} 13... Rfb8 {[%clk 1:34:43]} 14. Nb5 {[%clk 1:31:16]} 14... Qa6 {[%clk
1:34:43]} 15. Ra3 {[%clk 1:25:15]} 15... Nb6 {[%clk 1:34:03]} 16. b3 {[%clk
1:24:06]} 16... Ne8 {[%clk 1:30:18]} 17. Re1 {[%clk 1:11:21]} 17... Nd7 {[%clk
1:29:24]} 18. Nd2 {[%clk 1:10:38]} 18... Nb6 {[%clk 1:17:44]} 19. Nc4 {[%clk
1:08:04]} 19... Nxc4 {[%clk 1:17:51]} 20. bxc4 {[%clk 1:06:36]} 20... Qb6 {[%clk
1:16:56]} 21. f4 {[%clk 1:01:59]} 21... Nc7 {[%clk 1:13:00]} 22. e5 {[%clk
0:57:00]} 22... Nxb5 {[%clk 1:10:46]} 23. cxb5 {[%clk 0:56:39]} 23... Qb7 {[%clk
1:10:47]} 24. Qf3 {[%clk 0:55:43]} 24... dxe5 {[%clk 1:09:41]} 25. fxe5 {[%clk
0:54:25]} 25... Rd8 {[%clk 1:10:01]} 26. Bf4 {[%clk 0:49:33]} 26... c4 {[%clk
1:05:04]} 27. d6 {[%clk 0:45:45]} 27... Qxf3+ {[%clk 1:05:21]} 28. Kxf3 {[%clk
0:46:07]} 28... exd6 {[%clk 1:05:37]} 29. exd6 {[%clk 0:45:56]} 29... g5 {[%clk
1:05:37]} 30. Bxg5 {[%clk 0:44:35]} 30... Rxd6 {[%clk 1:05:57]} 31. Bf4 {[%clk
0:42:35]} 31... Rb6 {[%clk 1:05:14]} 32. Rb1 {[%clk 0:41:12]} 32... c3 {[%clk
1:04:38]} 33. Ra2 {[%clk 0:41:10]} 33... c2 {[%clk 1:00:32]} 34. Rxc2 {[%clk
0:39:34]} 34... Raa6 35. a5 Rxa5 {[%clk 1:00:53]} 36. Rc6 {[%clk 0:39:38]} 36...
Ra4 {[%clk 1:00:31]} 37. Rxb6 {[%clk 0:33:06]} 37... Bd4 {[%clk 1:00:53]} 38.
Rb3 {[%clk 0:33:06]} 38... Bc5 39. Rb1 Bxb6 {[%clk 1:00:53]} 40. Rb3 {[%clk
0:33:23]} 40... Kf8 {[%clk 1:01:02]} 41. Be3 {[%clk 0:33:40]} 41... Bxe3 {[%clk
1:00:55]} 42. Kxe3 {[%clk 0:34:07]} 42... Ke7 {[%clk 1:00:59]} 43. b6 {[%clk
0:34:04]} 43... Ra8 {[%clk 1:01:15]} 44. b7 {[%clk 0:34:12]} 44... Rb8 {[%clk
1:01:39]} 45. Kf4 {[%clk 0:34:23]} 45... Kf6 {[%clk 1:01:43]} 46. Rb6+ {[%clk
0:34:50]} 46... Ke7 {[%clk 1:00:12]} 47. Kg5 {[%clk 0:35:09]} 47... f6+ {[%clk
1:00:20]} 48. Kf5 {[%clk 0:34:51]} 48... h5 {[%clk 0:59:54]} 49. h4 {[%clk
0:35:07]} 49... Kd7 {[%clk 0:59:44]} 50. Rxf6 {[%clk 0:35:24]} 50... Ke7 {[%clk
0:59:34]} 51. Rb6 {[%clk 0:35:47]} 51... Kf7 {[%clk 0:58:35]} 52. Kg5 {[%clk
0:35:20]} 52... Ke7 {[%clk 0:57:24]} 53. Kxh5 {[%clk 0:35:29]} 53... Rh8+ {[%clk
0:57:38]} 54. Kg4 {[%clk 0:35:35]} 54... Rg8+ {[%clk 0:57:55]} 55. Kh3 {[%clk
0:35:55]} 55... Rb8 {[%clk 0:57:52]} 56. g4 {[%clk 0:36:13]} 56... Kd7 {[%clk
0:58:14]} 57. g5 {[%clk 0:36:38]} 57... Kc7 {[%clk 0:58:37]} 58. Rb3 {[%clk
0:37:03]} 58... Kd6 {[%clk 0:58:21]} 59. g6 {[%clk 0:37:13]} 59... Ke7 {[%clk
0:58:37]} 60. h5 {[%clk 0:37:17]} 60... Kf6 {[%clk 0:58:42]} 61. Kg4 {[%clk
0:37:38]} 61... Kg7 {[%clk 0:59:03]} 62. Kg5 {[%clk 0:37:59]} 62... Kg8 {[%clk
0:59:21]} 63. h6 {[%clk 0:38:25]} 63... Kh8 {[%clk 0:59:13]} 64. g7+ {[%clk
0:38:38]} 64... Kh7 {[%clk 0:59:26]} 65. Kf6 {[%clk 0:39:01]} 65... Rc8 {[%clk
0:59:32]} 66. bxc8=R {[%clk 0:39:37]} 66... Kxh6 1-0

[Variant "Standard"]
[Site "Europe Echecs"]

[Event "Championnat du monde jeunes U10"]
[Date "2024.11.25"]
[White "Roth, Elai"]
[Black "Friscic, Jakov"]
[WhiteElo "1577"]
[BlackElo "1685"]
[Round "10.6"]
[Result "0-1"]
[TimeControl "5400+30"]

1. e4 {[%clk 1:30:56]} 1... c6 {[%clk 1:30:50]} 2. d4 {[%clk 1:31:22]} 2... d5
{[%clk 1:31:13]} 3. exd5 {[%clk 1:31:40]} 3... cxd5 {[%clk 1:31:36]} 4. Bd3
{[%clk 1:31:59]} 4... Nc6 {[%clk 1:31:51]} 5. c3 {[%clk 1:32:23]} 5... Qc7
{[%clk 1:32:16]} 6. h3 {[%clk 1:32:42]} 6... Nf6 {[%clk 1:32:34]} 7. Nf3 {[%clk
1:31:10]} 7... g6 {[%clk 1:32:56]} 8. O-O {[%clk 1:31:32]} 8... Bf5 {[%clk
1:33:21]} 9. Re1 {[%clk 1:31:49]} 9... e6 {[%clk 1:33:25]} 10. Bf1 {[%clk
1:19:43]} 10... Bd6 {[%clk 1:30:54]} 11. Be3 {[%clk 1:19:04]} 11... h5 {[%clk
1:27:20]} 12. Nbd2 {[%clk 1:14:52]} 12... a6 {[%clk 1:14:52]} 13. Bg5 {[%clk
1:12:04]} 13... Ne4 {[%clk 1:12:44]} 14. Nxe4 {[%clk 1:10:45]} 14... Bxe4 {[%clk
1:09:53]} 15. Nd2 {[%clk 1:10:12]} 15... Bf5 {[%clk 1:05:32]} 16. Bf6 {[%clk
1:08:48]} 16... Rh7 {[%clk 1:05:24]} 17. Nf3 {[%clk 1:08:27]} 17... Be7 {[%clk
1:04:06]} 18. Ng5 {[%clk 1:04:41]} 18... Rh6 {[%clk 1:04:13]} 19. Bxe7 {[%clk
1:04:41]} 19... Qxe7 {[%clk 1:04:15]} 20. Qd2 {[%clk 1:04:33]} 20... Rh8 {[%clk
1:02:52]} 21. h4 {[%clk 0:59:29]} 21... O-O-O {[%clk 0:57:16]} 22. Bd3 {[%clk
0:57:53]} 22... Bxd3 {[%clk 0:56:56]} 23. Qxd3 {[%clk 0:58:16]} 23... Qf6 {[%clk
0:55:05]} 24. Re3 {[%clk 0:57:49]} 24... Ne7 {[%clk 0:53:55]} 25. Rf3 {[%clk
0:48:31]} 25... Nf5 {[%clk 0:54:14]} 26. Re1 {[%clk 0:48:26]} 26... Qe7 {[%clk
0:48:49]} 27. g3 {[%clk 0:45:24]} 27... Kb8 {[%clk 0:45:07]} 28. Qe2 {[%clk
0:39:56]} 28... Qc7 {[%clk 0:42:11]} 29. Qe5 {[%clk 0:28:03]} 29... Qxe5 {[%clk
0:40:53]} 30. dxe5 {[%clk 0:28:22]} 30... Rd7 {[%clk 0:39:03]} 31. Rd1 {[%clk
0:27:07]} 31... b5 {[%clk 0:33:06]} 32. b3 {[%clk 0:24:32]} 32... Rc8 {[%clk
0:31:44]} 33. Rdd3 {[%clk 0:21:16]} 33... Kc7 {[%clk 0:29:30]} 34. Rf4 {[%clk
0:17:54]} 34... Kb6 {[%clk 0:23:33]} 35. c4 {[%clk 0:16:31]} 35... bxc4 {[%clk
0:23:34]} 36. bxc4 {[%clk 0:16:51]} 36... d4 {[%clk 0:23:34]} 37. Rb3+ {[%clk
0:16:36]} 37... Kc5 {[%clk 0:23:01]} 38. Rb1 {[%clk 0:15:52]} 38... Rcc7 {[%clk
0:22:21]} 39. Rc1 {[%clk 0:15:56]} 39... Kb4 {[%clk 0:22:17]} 40. Rf3 {[%clk
0:13:49]} 40... d3 {[%clk 0:21:36]} 41. Rd1 {[%clk 0:12:56]} 41... Kxc4 {[%clk
0:21:22]} 42. Ne4 {[%clk 0:12:22]} 42... Rb7 {[%clk 0:09:19]} 43. Rc1+ {[%clk
0:12:27]} 43... Kb4 {[%clk 0:09:06]} 44. Nc5 {[%clk 0:11:55]} 44... Nd4 {[%clk
0:08:10]} 45. Rf4 {[%clk 0:10:46]} 45... d2 {[%clk 0:08:05]} 46. Nd3+ {[%clk
0:08:30]} 46... Ka3 {[%clk 0:08:08]} 47. Rd1 {[%clk 0:08:06]} 47... Ne2+ {[%clk
0:08:18]} 48. Kf1 {[%clk 0:08:16]} 48... Nxf4 {[%clk 0:08:34]} 49. Nxf4 {[%clk
0:08:38]} 49... Kxa2 {[%clk 0:08:15]} 50. Ke2 {[%clk 0:08:55]} 50... Rb1 {[%clk
0:08:31]} 51. Rxd2+ {[%clk 0:08:51]} 51... Rb2 {[%clk 0:08:49]} 52. Rxb2+ {[%clk
0:09:00]} 52... Kxb2 {[%clk 0:09:12]} 53. Nd3+ {[%clk 0:09:25]} 53... Rxd3
{[%clk 0:09:29]} 54. Kxd3 {[%clk 0:09:47]} 54... a5 {[%clk 0:09:53]} 55. Kc4
{[%clk 0:10:00]} 55... a4 {[%clk 0:10:14]} 56. Kc5 {[%clk 0:10:15]} 56... a3
{[%clk 0:10:39]} 57. Kd6 {[%clk 0:10:37]} 57... a2 {[%clk 0:10:58]} 58. Ke7
{[%clk 0:11:02]} 58... a1=Q {[%clk 0:11:17]} 59. Kxf7 {[%clk 0:11:28]} 59... Qb1
{[%clk 0:11:25]} 60. Kxe6 {[%clk 0:11:53]} 60... Qf5+ {[%clk 0:11:45]} 61. Kd6
{[%clk 0:12:14]} 61... Qxf2 {[%clk 0:12:02]} 62. e6 {[%clk 0:12:34]} 62... Qxg3+
{[%clk 0:12:03]} 63. Kd7 {[%clk 0:12:41]} 63... Qxh4 {[%clk 0:12:23]} 64. e7
{[%clk 0:13:03]} 64... Qxe7+ {[%clk 0:12:47]} 65. Kxe7 {[%clk 0:13:28]} 65... h4
{[%clk 0:13:11]} 0-1

[Variant "Standard"]
[Site "Europe Echecs"]

[Event "Championnat du monde jeunes U10"]
[Date "2024.11.25"]
[White "Wang, Yuwei"]
[Black "Makhsatuly, Rakhim"]
[WhiteElo "1576"]
[BlackElo "1683"]
[Round "10.7"]
[Result "0-1"]
[TimeControl "5400+30"]

1. d4 {[%clk 1:30:56]} 1... Nf6 {[%clk 1:30:54]} 2. c4 {[%clk 1:31:23]} 2... e6
{[%clk 1:31:21]} 3. Nc3 {[%clk 1:31:49]} 3... b6 {[%clk 1:31:48]} 4. Nf3 {[%clk
1:31:50]} 4... Bb7 {[%clk 1:32:14]} 5. Bf4 {[%clk 1:31:34]} 5... d6 {[%clk
1:31:32]} 6. e3 {[%clk 1:31:33]} 6... Be7 {[%clk 1:31:23]} 7. Bd3 {[%clk
1:31:43]} 7... O-O {[%clk 1:31:19]} 8. O-O {[%clk 1:31:16]} 8... c5 {[%clk
1:30:41]} 9. d5 {[%clk 1:29:25]} 9... exd5 {[%clk 1:27:19]} 10. Nxd5 {[%clk
1:29:48]} 10... Bxd5 {[%clk 1:26:03]} 11. cxd5 {[%clk 1:30:10]} 11... Nh5 {[%clk
1:25:40]} 12. Bg3 Nxg3 {[%clk 1:26:01]} 13. hxg3 {[%clk 1:30:05]} 13... Nd7
{[%clk 1:24:33]} 14. e4 {[%clk 1:29:48]} 14... a6 {[%clk 1:22:13]} 15. a4 {[%clk
1:28:24]} 15... Qc7 {[%clk 1:19:33]} 16. Rc1 {[%clk 1:25:41]} 16... Qb7 {[%clk
1:17:36]} 17. Qe2 {[%clk 1:24:03]} 17... Bf6 {[%clk 1:17:21]} 18. Nh4 {[%clk
1:21:34]} 18... g6 {[%clk 1:13:19]} 19. f4 {[%clk 1:17:57]} 19... Bg7 {[%clk
1:13:03]} 20. g4 {[%clk 1:09:00]} 20... Rfb8 {[%clk 1:12:46]} 21. Ra1 {[%clk
0:59:02]} 21... Re8 {[%clk 1:07:39]} 22. g5 {[%clk 0:56:50]} 22... f5 {[%clk
0:56:32]} 23. gxf6 {[%clk 0:56:13]} 23... Nxf6 {[%clk 0:53:23]} 24. Qc2 {[%clk
0:42:11]} 24... Rac8 {[%clk 0:50:40]} 25. Rfe1 {[%clk 0:33:23]} 25... c4 {[%clk
0:43:02]} 26. Bf1 {[%clk 0:33:04]} 26... b5 {[%clk 0:42:05]} 27. Nf3 {[%clk
0:30:23]} 27... Qb6+ {[%clk 0:41:20]} 28. Kh1 {[%clk 0:30:04]} 28... Qc5 {[%clk
0:40:56]} 29. axb5 {[%clk 0:25:42]} 29... axb5 {[%clk 0:40:53]} 30. Ng5 {[%clk
0:24:06]} 30... Ng4 {[%clk 0:36:18]} 31. Ne6 {[%clk 0:22:43]} 31... Rxe6 {[%clk
0:35:30]} 32. dxe6 {[%clk 0:22:55]} 32... Qh5+ {[%clk 0:35:59]} 33. Kg1 {[%clk
0:22:40]} 33... Qh2# {[%clk 0:36:27]} 0-1

[Variant "Standard"]
[Site "Europe Echecs"]

[Event "Championnat du monde jeunes U10"]
[Date "2024.11.25"]
[White "Burba, Mikita"]
[Black "Aghoyan, Gevorg"]
[WhiteElo "1528"]
[BlackElo "1682"]
[Round "10.8"]
[Result "1-0"]
[TimeControl "5400+30"]

1. e4 {[%clk 1:30:58]} 1... c5 {[%clk 1:30:52]} 2. Nf3 {[%clk 1:31:19]} 2... Nc6
{[%clk 1:31:08]} 3. d4 {[%clk 1:31:41]} 3... cxd4 {[%clk 1:31:28]} 4. Nxd4
{[%clk 1:32:04]} 4... g6 {[%clk 1:31:30]} 5. Nc3 {[%clk 1:32:21]} 5... Bg7
{[%clk 1:31:52]} 6. Be3 {[%clk 1:32:36]} 6... Nf6 {[%clk 1:32:04]} 7. Bc4 {[%clk
1:32:16]} 7... O-O {[%clk 1:32:08]} 8. Bb3 {[%clk 1:32:30]} 8... d5 {[%clk
1:32:06]} 9. exd5 {[%clk 1:24:34]} 9... Na5 {[%clk 1:32:00]} 10. h3 {[%clk
1:19:08]} 10... Nxb3 {[%clk 1:30:24]} 11. Nxb3 {[%clk 1:19:07]} 11... b6 {[%clk
1:27:00]} 12. Qd2 {[%clk 1:17:30]} 12... Bb7 {[%clk 1:21:04]} 13. O-O-O {[%clk
1:14:29]} 13... Qd7 {[%clk 1:10:23]} 14. f3 {[%clk 1:10:08]} 14... Rfd8 {[%clk
1:07:54]} 15. d6 {[%clk 1:07:44]} 15... exd6 {[%clk 1:03:28]} 16. Bf4 {[%clk
1:04:13]} 16... d5 {[%clk 0:57:36]} 17. Nd4 {[%clk 1:02:15]} 17... a6 {[%clk
0:51:10]} 18. g4 {[%clk 0:59:19]} 18... Rac8 {[%clk 0:43:22]} 19. Bh6 {[%clk
0:49:27]} 19... Bh8 {[%clk 0:35:37]} 20. h4 {[%clk 0:48:48]} 20... Rc4 {[%clk
0:31:27]} 21. Qf2 {[%clk 0:34:07]} 21... b5 {[%clk 0:23:00]} 22. h5 {[%clk
0:31:55]} 22... b4 {[%clk 0:20:58]} 23. Nce2 {[%clk 0:30:37]} 23... Rdc8 {[%clk
0:17:00]} 24. Kb1 {[%clk 0:28:08]} 24... a5 {[%clk 0:12:33]} 25. hxg6 {[%clk
0:25:27]} 25... fxg6 {[%clk 0:10:12]} 26. Bg5 {[%clk 0:22:58]} 26... Rf8 {[%clk
0:07:02]} 27. Qh4 {[%clk 0:19:56]} 27... Ba6 {[%clk 0:04:08]} 28. Nf4 {[%clk
0:13:03]} 28... Bc8 {[%clk 0:02:32]} 29. Nxg6 {[%clk 0:12:21]} 29... Rf7 {[%clk
0:02:04]} 30. Nxh8 {[%clk 0:12:22]} 30... Kxh8 {[%clk 0:02:23]} 31. Bxf6+ {[%clk
0:12:46]} 31... Kg8 {[%clk 0:02:42]} 32. Qg5+ {[%clk 0:12:58]} 32... Kf8 {[%clk
0:03:03]} 33. Qh6+ {[%clk 0:12:52]} 33... Kg8 {[%clk 0:03:02]} 34. Rh5 {[%clk
0:12:58]} 34... Rxf6 {[%clk 0:02:57]} 35. Qxf6 {[%clk 0:13:21]} 35... h6 {[%clk
0:03:00]} 36. Nf5 {[%clk 0:13:08]} 36... Rxc2 {[%clk 0:03:04]} 37. Nxh6+ {[%clk
0:13:27]} 37... Kh7 {[%clk 0:03:27]} 38. Nf7+ {[%clk 0:13:48]} 38... Kg8 {[%clk
0:03:50]} 39. Rh8# {[%clk 0:14:12]} 1-0

[Variant "Standard"]
[Site "Europe Echecs"]

[Event "Championnat du monde jeunes U10"]
[Date "2024.11.25"]
[White "Megagiannis, Maximos"]
[Black "Youn, Laeho"]
[WhiteElo "1682"]
[BlackElo "1520"]
[Round "10.9"]
[Result "1-0"]
[TimeControl "5400+30"]

1. e4 e6 {[%clk 1:30:09]} 2. d4 {[%clk 1:31:10]} 2... d5 {[%clk 1:30:32]} 3. Nc3
{[%clk 1:31:31]} 3... Nf6 {[%clk 1:30:44]} 4. Bg5 {[%clk 1:31:55]} 4... Be7
{[%clk 1:31:09]} 5. e5 {[%clk 1:31:42]} 5... Nfd7 {[%clk 1:31:08]} 6. Bxe7
{[%clk 1:31:30]} 6... Kxe7 {[%clk 1:30:25]} 7. Qg4 {[%clk 1:22:58]} 7... g6
{[%clk 1:28:40]} 8. f4 {[%clk 1:19:46]} 8... a6 {[%clk 1:28:00]} 9. O-O-O {[%clk
1:18:41]} 9... b5 {[%clk 1:28:03]} 10. a3 {[%clk 1:16:22]} 10... Re8 {[%clk
1:26:31]} 11. Qh4+ {[%clk 1:15:50]} 11... Kf8 {[%clk 1:26:08]} 12. Qxh7 {[%clk
1:16:04]} 12... c5 {[%clk 1:26:08]} 13. dxc5 {[%clk 1:13:24]} 13... Qa5 {[%clk
1:23:26]} 14. Nf3 {[%clk 1:13:25]} 14... Nxc5 {[%clk 1:21:24]} 15. Ng5 {[%clk
1:13:04]} 15... Ra7 {[%clk 1:21:13]} 16. Qh8+ {[%clk 1:11:06]} 16... Ke7 {[%clk
1:21:00]} 17. Qf6+ {[%clk 1:11:29]} 17... Kf8 {[%clk 1:19:49]} 18. Bd3 {[%clk
1:10:26]} 18... d4 {[%clk 1:11:00]} 19. Bxg6 {[%clk 1:07:28]} 19... dxc3 {[%clk
1:11:19]} 20. Bxf7 {[%clk 1:06:47]} 20... cxb2+ {[%clk 1:11:21]} 21. Kb1 {[%clk
1:06:46]} 21... Qd8 {[%clk 1:10:53]} 22. Nh7# {[%clk 1:06:55]} 1-0

[Variant "Standard"]
[Site "Europe Echecs"]

[Event "Championnat du monde jeunes U10"]
[Date "2024.11.25"]
[White "Della Penna, Leonardo"]
[Black "Kaloh, Edvard"]
[WhiteElo "1675"]
[BlackElo "1506"]
[Round "10.10"]
[Result "0-1"]
[TimeControl "5400+30"]

1. e4 {[%clk 1:30:58]} 1... e5 {[%clk 1:28:56]} 2. Nf3 {[%clk 1:29:58]} 2... Nf6
{[%clk 1:29:20]} 3. Nxe5 {[%clk 1:29:35]} 3... Nc6 {[%clk 1:29:42]} 4. Nxc6
{[%clk 1:29:10]} 4... dxc6 5. Nc3 {[%clk 1:28:17]} 5... Bc5 {[%clk 1:30:29]} 6.
Be2 {[%clk 1:25:05]} 6... h5 {[%clk 1:30:24]} 7. h3 {[%clk 1:24:12]} 7... Qd4
{[%clk 1:30:48]} 8. O-O {[%clk 1:23:42]} 8... Ng4 {[%clk 1:31:10]} 9. Bxg4
{[%clk 1:14:07]} 9... hxg4 {[%clk 1:31:26]} 10. g3 {[%clk 1:12:55]} 10... Qe5
{[%clk 1:31:45]} 11. Kg2 {[%clk 1:12:56]} 11... Rxh3 {[%clk 1:31:05]} 12. Qe2
{[%clk 1:12:06]} 12... Qh5 {[%clk 1:31:16]} 13. Rg1 {[%clk 1:11:21]} 13... Rh2+
{[%clk 1:31:14]} 14. Kf1 {[%clk 1:11:43]} 14... Rh1 {[%clk 1:31:36]} 0-1

[Variant "Standard"]
[Site "Europe Echecs"]

[Event "Championnat du monde jeunes U10"]
[Date "2024.11.25"]
[White "Wu, Chenyu"]
[Black "Iliev, Stoyan"]
[WhiteElo "1503"]
[BlackElo "1671"]
[Round "10.11"]
[Result "1/2-1/2"]
[TimeControl "5400+30"]

1. d4 d5 {[%clk 1:30:37]} 2. c4 {[%clk 1:31:18]} 2... e6 {[%clk 1:31:03]} 3. Nc3
{[%clk 1:31:44]} 3... Nf6 {[%clk 1:31:28]} 4. Nf3 {[%clk 1:32:10]} 4... Bb4
{[%clk 1:31:47]} 5. Qa4+ {[%clk 1:32:29]} 5... Nc6 {[%clk 1:32:09]} 6. e3 {[%clk
1:32:51]} 6... Bd7 {[%clk 1:32:06]} 7. Qc2 {[%clk 1:33:12]} 7... Bxc3+ {[%clk
1:29:39]} 8. bxc3 {[%clk 1:33:32]} 8... O-O {[%clk 1:29:03]} 9. Bd3 {[%clk
1:33:16]} 9... h6 {[%clk 1:29:02]} 10. O-O {[%clk 1:32:06]} 10... Re8 {[%clk
1:28:53]} 11. cxd5 {[%clk 1:25:53]} 11... exd5 {[%clk 1:29:11]} 12. Rb1 {[%clk
1:23:57]} 12... Bg4 {[%clk 1:21:05]} 13. Rxb7 {[%clk 1:09:58]} 13... Bxf3 {[%clk
1:20:13]} 14. gxf3 {[%clk 1:10:01]} 14... Nd7 {[%clk 1:19:25]} 15. e4 {[%clk
1:01:32]} 15... Nb6 {[%clk 1:17:14]} 16. Bf4 {[%clk 1:01:28]} 16... Re7 {[%clk
1:00:31]} 17. exd5 {[%clk 1:00:24]} 17... Nxd5 {[%clk 0:53:26]} 18. Bg3 {[%clk
0:59:03]} 18... Nxc3 {[%clk 0:36:26]} 19. Qxc3 {[%clk 0:57:42]} 19... Nxd4
{[%clk 0:36:50]} 20. Kg2 {[%clk 0:56:18]} 20... Nxf3 {[%clk 0:35:23]} 21. Bh7+
{[%clk 0:55:47]} 21... Kxh7 {[%clk 0:34:27]} 22. Qxf3 {[%clk 0:56:12]} 22... Rb8
{[%clk 0:33:29]} 23. Rxa7 {[%clk 0:55:27]} 23... Rb2 {[%clk 0:29:04]} 24. Bh4
{[%clk 0:52:18]} 24... f6 {[%clk 0:28:41]} 25. Ra8 {[%clk 0:45:13]} 25... Rb8
{[%clk 0:28:09]} 26. Rxb8 {[%clk 0:45:13]} 26... Qxb8 {[%clk 0:28:34]} 27. a4
{[%clk 0:45:08]} 27... Qa7 {[%clk 0:28:25]} 28. Qd3+ {[%clk 0:41:35]} 28... Kg8
{[%clk 0:28:02]} 29. Ra1 {[%clk 0:41:05]} 29... Qa8+ {[%clk 0:27:37]} 30. Kg1
{[%clk 0:40:23]} 30... Qa5 {[%clk 0:27:35]} 31. Bg3 {[%clk 0:39:49]} 31... Re1+
{[%clk 0:25:37]} 32. Rxe1 {[%clk 0:40:07]} 32... Qxe1+ {[%clk 0:26:06]} 33. Kg2
{[%clk 0:40:05]} 33... Qb4 {[%clk 0:24:45]} 34. Qc2 {[%clk 0:39:52]} 34... c5
{[%clk 0:24:25]} 35. Bd6 {[%clk 0:39:30]} 35... Qg4+ {[%clk 0:24:33]} 36. Kf1
{[%clk 0:38:16]} 36... Qh3+ {[%clk 0:24:54]} 37. Kg1 {[%clk 0:38:38]} 37... Qg4+
{[%clk 0:25:07]} 38. Bg3 {[%clk 0:39:01]} 38... h5 {[%clk 0:24:39]} 39. Kf1
{[%clk 0:38:36]} 39... h4 {[%clk 0:23:05]} 40. Bb8 {[%clk 0:38:21]} 40... h3
{[%clk 0:22:32]} 41. a5 {[%clk 0:36:08]} 41... Qg2+ {[%clk 0:18:29]} 42. Ke2
{[%clk 0:35:49]} 42... Qg4+ {[%clk 0:18:26]} 43. Kd2 {[%clk 0:33:31]} 43... Qb4+
{[%clk 0:18:36]} 44. Ke2 {[%clk 0:33:15]} 44... Qxb8 {[%clk 0:18:18]} 45. Qe4
{[%clk 0:32:38]} 45... Qb5+ {[%clk 0:18:25]} 46. Kf3 {[%clk 0:32:14]} 46... Qxa5
{[%clk 0:18:34]} 47. Qe8+ {[%clk 0:32:32]} 1/2-1/2

[Variant "Standard"]
[Site "Europe Echecs"]